fUSD/lending_fUSD_20240220
["ID","MTS","AMOUNT","RATE_DAILY","PERIOD"]
[314619130,1708453854720,-500.0,0.00046575,30]
[314619131,1708453854730,-540.63,0.00046575,30]
[314619132,1708453854739,-500.0,0.00046575,30]
[314619133,1708453854748,-576.52467994,0.00046575,30]
[314619134,1708453854758,-500.0,0.00046575,30]
[314619135,1708453854770,-500.0,0.00046575,30]
[314619136,1708453854779,-972.81,0.00046575,30]
[314619137,1708453854788,-500.0,0.00046575,30]
[314619138,1708453854798,-500.0,0.00046575,30]
[314619139,1708453854808,-500.0,0.00046575,30]
[314619140,1708453854817,-500.0,0.00046575,30]
[314619141,1708453854827,-500.0,0.00046575,30]
[314619142,1708453854836,-500.0,0.00046575,30]
[314619143,1708453854846,-500.0,0.00046575,30]
[314619144,1708453854856,-500.0,0.00046575,30]
[314619145,1708453854866,-500.0,0.00046575,30]
[314619146,1708453854875,-500.0,0.00046575,30]
[314619147,1708453854885,-500.0,0.00046575,30]
[314619148,1708453854894,-500.0,0.00046575,30]
[314619149,1708453854904,-500.0,0.00046575,30]
[314619150,1708453854913,-500.0,0.00046575,30]
[314619151,1708453854922,-500.0,0.00046575,30]
[314619152,1708453854932,-500.0,0.00046575,30]
[314619153,1708453854941,-500.0,0.00046575,30]
[314619154,1708453854950,-500.0,0.00046575,30]
[314619155,1708453854959,-500.0,0.00046575,30]
[314619156,1708453854969,-517.6,0.00046575,30]
[314619157,1708453854978,-500.0,0.00046575,30]
[314619158,1708453854987,-957.29,0.00046575,30]
[314619159,1708453854997,-500.0,0.00046575,30]
[314619160,1708453855056,-541.53,0.00046575,30]
[314619161,1708453855065,-500.0,0.00046575,30]
[314619162,1708453855074,-500.0,0.00046575,30]
[314619163,1708453855083,-500.0,0.00046575,30]
[314619164,1708453855092,-500.0,0.00046575,30]
[314619165,1708453855101,-500.0,0.00046575,30]
[314619166,1708453855111,-500.0,0.00046575,30]
[314619167,1708453855120,-500.0,0.00046575,30]
[314619168,1708453855129,-500.0,0.00046575,30]
[314619169,1708453855139,-500.0,0.00046575,30]
[314619170,1708453855148,-500.0,0.00046575,30]
[314619171,1708453855157,-503.58098672,0.00046575,30]
[314619172,1708453855167,-500.0,0.00046575,30]
[314619173,1708453855176,-500.0,0.00046575,30]
[314619174,1708453855185,-500.0,0.00046575,30]
[314619175,1708453855195,-500.0,0.00046575,30]
[314619176,1708453855204,-500.0,0.00046575,30]
[314619177,1708453855213,-539.56,0.00046575,30]
[314619178,1708453855222,-500.0,0.00046575,30]
[314619179,1708453855231,-612.62485562,0.00046575,30]
[314619180,1708453855241,-500.0,0.00046575,30]
[314619181,1708453855249,-500.0,0.00046575,30]
[314619182,1708453855259,-500.0,0.00046575,30]
[314619183,1708453855270,-500.0,0.00046575,30]
[314619184,1708453855279,-500.0,0.00046575,30]
[314619185,1708453855290,-204.26297396,0.00046575,30]
[314619186,1708453855299,-2000.0,0.000466,2]
[314619187,1708453855309,-2236.25,0.000466,7]
[314619188,1708453855319,-2578.64,0.000466,7]
[314619189,1708453855328,-151.0,0.00046614,2]
[314619190,1708453855337,-250.49088,0.00046614,2]
[314619191,1708453855348,-1476.15986846,0.0004663,5]
[314619192,1708453855357,-2338.0,0.000467,115]
[314619193,1708453855367,-630.30363561,0.00046707,12]
[314619194,1708453855376,-953.46142488,0.00046749,41]
[314619195,1708453855390,-152.3641256,0.00046791,32]
[314619196,1708453855401,-5106.46016042,0.00046829,22]
[314619197,1708453855411,-178.33759153,0.00046837,2]
[314619198,1708453855420,-1337954.75034993,0.00046847,3]
[314619199,1708453855607,-34127.81353019,0.00046847,3]
[314619200,1708453855632,-1076.05001922,0.00046847,3]
[314619201,1708453855643,-468.454999,0.00046847,3]
[314619202,1708453855659,-4684.66137344,0.00046847,3]
[314619203,1708453855671,-8286.84747715,0.00046847,3]
[314619204,1708453855693,-383.10548678,0.00046847,3]
[314619205,1708453855705,-5330.01748961,0.00046847,3]
[314619206,1708453855716,-82847.29808944,0.00046847,3]
[314619207,1708453855725,-38525.32407913,0.00046847,61]
[314619208,1708453855754,-0.0024583,0.00046847,61]
[314619209,1708453855768,-3466.36882721,0.00046847,61]
[314619210,1708453855977,-182.66,0.0004605,10]
[314619211,1708453855986,-2781.33586169,0.00046847,61]
[314619212,1708453855998,-25438.73102127,0.00046847,61]
[314619213,1708453856014,-15362.99999999,0.00046847,61]
[314619214,1708453856031,-10013.33245386,0.00046847,61]
[314619288,1708454737373,-843.66374,0.0003452,2]
[314619289,1708454737398,-1156.33626,0.0003452,2]
[314619290,1708454737914,-2000.0,0.0003452,2]
[314619291,1708454741686,-2000.0,0.0003452,2]
[314619293,1708454749235,-1155.218386,0.0003452,2]
[314619294,1708454749258,-844.781614,0.00034794,2]
[314619295,1708454755479,-420.713997,0.00034794,2]
[314619296,1708454755502,-1579.286003,0.00034794,2]
[314619297,1708454756703,-2000.0,0.00034794,2]
[314619299,1708454762282,-2000.0,0.00034794,2]
[314619300,1708454776094,-800.0,0.00034794,2]
[314619301,1708454796953,-150.0,0.00034342,2]
[314619302,1708454866051,176.93,0.00027397,2]
[314619303,1708454947217,-3088.045966,0.00034794,2]
[314619304,1708454947237,-400.0,0.0003493,3]
[314619305,1708454947256,-400.0,0.0003493,3]
[314619306,1708454947275,-1687.327481,0.00034931,2]
[314619307,1708454947296,-12623.109292,0.00034931,2]
[314619308,1708454947316,-2109.159352,0.00035068,2]
[314619309,1708454947336,-1803.706909,0.00035068,2]
[314619310,1708454952172,-13975.179706,0.00035068,2]
[314619311,1708454952194,-2952.823093,0.00035342,2]
[314619312,1708454952215,-17977.269201,0.00035342,2]
[314619313,1708454959222,-4113.17206,0.00035342,2]
[314619314,1708454959246,-760.0,0.00036,6]
[314619315,1708454959268,-232.99,0.000369,2]
[314619316,1708454959294,-312.60327065,0.00037,4]
[314619317,1708454959317,-2740.1593,0.00037435,30]
[314619318,1708454959339,-560.0,0.00037455,3]
[314619319,1708454959363,-438.97,0.00037535,2]
[314619320,1708454959385,-281.0,0.00038188,2]
[314619321,1708454959408,-2000.0,0.00038639,2]
[314619322,1708454959431,-160.86,0.00038704,2]
[314619323,1708454959453,-299.99,0.00038704,120]
[314619324,1708454959479,-5373.02,0.00038719,2]
[314619325,1708454959500,-786.03,0.0003872,2]
[314619326,1708454959521,-150.95,0.00038737,2]
[314619327,1708454959541,-499.99,0.00038737,2]
[314619328,1708454959561,-150.0,0.00038747,2]
[314619329,1708454959580,-200.0,0.00038758,2]
[314619330,1708454959600,-4000.0,0.00038799,30]
[314619331,1708454959619,-973.00729484,0.00038856,2]
[314619332,1708454959638,-2727.32,0.00038876,2]
[314619333,1708454959658,-500.0,0.00038876,2]
[314619334,1708454959680,-155.33624964,0.00038939,2]
[314619335,1708454961184,-22.58375036,0.00038939,2]
[314619336,1708454961205,-2705.0,0.00038944,120]
[314619337,1708454961227,-23900.0,0.00038955,2]
[314619338,1708454961246,-226.24,0.00038956,2]
[314619339,1708454961266,-514.14,0.00038967,2]
[314619340,1708454961290,-157.34,0.00038999,2]
[314619341,1708454961310,-1500.0,0.00039087,10]
[314619342,1708454961330,-1239.26,0.00039104,2]
[314619343,1708454961350,-200.0,0.00039128,2]
[314619344,1708454961369,-918.2,0.00039128,15]
[314619345,1708454961390,-716.76,0.00039143,2]
[314619346,1708454961410,-157.34,0.00039202,2]
[314619347,1708454961430,-200.0,0.0003926,2]
[314619348,1708454961451,-175.03441539,0.00039353,2]
[314619349,1708454961475,-127.72725639,0.00039405,2]
[314619350,1708454963140,-29.61274361,0.00039405,2]
[314619351,1708454963161,-250.0,0.00039453,2]
[314619352,1708454963182,-500.0,0.00039481,2]
[314619353,1708454963201,-400.0,0.00039481,2]
[314619354,1708454963223,-157.34,0.00039609,2]
[314619355,1708454963241,-250.0,0.0003968,2]
[314619356,1708454963262,-176.44,0.00039718,2]
[314619357,1708454963280,-173.97,0.00039726,2]
[314619358,1708454963299,-973.00729484,0.00039761,2]
[314619359,1708454963320,-151.0,0.00039786,120]
[314619360,1708454963339,-438.97,0.00039799,2]
[314619361,1708454963360,-157.34,0.00039812,2]
[314619362,1708454963379,-354.76,0.00039865,2]
[314619363,1708454963399,-701.02918323,0.00039899,4]
[314619364,1708454963419,-465.38,0.0003999,10]
[314619365,1708454963437,-154.17169298,0.0004,2]
[314619366,1708454963456,-255.0,0.0004,12]
[314619367,1708454963477,-223.43698534,0.0004,7]
[314619370,1708454972241,-2507.58,0.00039361,2]
[314619371,1708454972262,-338.56301466,0.0004,7]
[314619372,1708454972282,-321.7880208,0.0004,30]
[314619373,1708454972302,-255.0,0.0004,12]
[314619374,1708454972325,-153.01,0.0004,2]
[314619375,1708454972349,-822.97735198,0.00040003,2]
[314619376,1708454972370,-157.34,0.00040015,2]
[314619377,1708454972389,-154.17169298,0.00040093,2]
[314619378,1708454972408,-20711.73,0.00040103,2]
[314619379,1708454972430,-153.6,0.000402,4]
[314619380,1708454972452,-153.6,0.000402,4]
[314619381,1708454972474,-153.6,0.000402,4]
[314619382,1708454972497,-153.6,0.000402,4]
[314619383,1708454972520,-153.6,0.000402,4]
[314619384,1708454972542,-153.6,0.000402,4]
[314619385,1708454972567,-153.6,0.000402,4]
[314619386,1708454972592,-153.6,0.000402,4]
[314619387,1708454972615,-153.6,0.000402,4]
[314619388,1708454972636,-153.6,0.000402,4]
[314619389,1708454972659,-153.6,0.000402,4]
[314619390,1708454972680,-153.6,0.000402,4]
[314619391,1708454972703,-153.6,0.000402,4]
[314619392,1708454972725,-153.6,0.000402,4]
[314619393,1708454972760,-153.6,0.000402,4]
[314619394,1708454972784,-153.6,0.000402,4]
[314619395,1708454972807,-153.6,0.000402,4]
[314619396,1708454972828,-153.6,0.000402,4]
[314619397,1708454972849,-157.34,0.00040218,2]
[314619398,1708454972871,-177.92,0.00040237,2]
[314619399,1708454972892,-157.34,0.00040422,2]
[314619400,1708454972914,-387.81,0.00040445,10]
[314619401,1708454972934,-10348.0,0.00040455,2]
[314619402,1708454972954,-1239.26,0.00040551,2]
[314619403,1708454972974,-4501.8995,0.00040564,7]
[314619404,1708454972996,-3116.89143885,0.00040564,3]
[314619405,1708454973017,-151.0,0.00040598,30]
[314619406,1708454973038,-157.34,0.00040625,2]
[314619407,1708454973058,-154.17169298,0.00040654,2]
[314619408,1708454973078,-154.17169298,0.00040654,2]
[314619409,1708454973097,-154.17169298,0.00040654,2]
[314619410,1708454973117,-154.17169298,0.00040654,2]
[314619411,1708454973136,-154.17169298,0.00040654,2]
[314619412,1708454973157,-154.17169298,0.00040654,2]
[314619413,1708454973182,-599.63465986,0.00040663,2]
[314619414,1708454973202,-207.4007,0.00040664,2]
[314619415,1708454973221,-2500.0,0.00040664,2]
[314619416,1708454973242,-3683.1088,0.00040664,2]
[314619417,1708454973261,-585.56102948,0.00040665,12]
[314619418,1708454973282,-973.00729484,0.00040665,2]
[314619419,1708454973303,-256.45675437,0.00040665,10]
[314619420,1708454973322,-200.0,0.00040685,2]
[314619421,1708454973341,-387.202635,0.000407,2]
[314619422,1708454973361,-200.0,0.00040733,2]
[314619423,1708454973382,-1000.0,0.0004074,2]
[314619424,1708454973402,-568.24090122,0.00040755,2]
[314619425,1708454973422,-79406.39604808,0.00040764,2]
[314619426,1708454973683,-11832.50375192,0.00040764,2]
[314619427,1708454973702,-1000.0,0.00040764,2]
[314619428,1708454973725,-86469.72024808,0.00040764,2]
[314619447,1708455031896,-49260.89600379,0.0003988,2]
[314619448,1708455031909,-65578.77579909,0.0003988,2]
[314619449,1708455032063,-29.85025196,0.0003988,2]
[314619450,1708455032144,-1009813.92883203,0.0003988,2]
[314619451,1708455032156,-2742.06200864,0.0003988,2]
[314619452,1708455032172,-4923.58338985,0.0003988,2]
[314619453,1708455032185,-6616.61360832,0.0003988,2]
[314619454,1708455032221,-187.02,0.0003987,10]
[314619455,1708455032230,-484.28691844,0.0003988,2]
[314619456,1708455032286,-167578.27545673,0.0003988,2]
[314619457,1708455032296,-250.0,0.00039961,2]
[314619458,1708455032305,-327.99,0.00039961,2]
[314619459,1708455032315,-250.0,0.00039961,2]
[314619460,1708455032325,-680.0,0.00039977,2]
[314619461,1708455032334,-1000.0,0.00040664,2]
[314619462,1708455032344,-17387.43636519,0.00040664,3]
[314619463,1708455032353,-199.54499963,0.00040764,2]
[314619465,1708455032362,-568.24090122,0.00040764,2]
[314619467,1708455032371,-489.2038,0.00040765,2]
[314619469,1708455032381,-1194.30083151,0.00040765,5]
[314619471,1708455032390,-175.03441535,0.00040791,2]
[314619473,1708455032400,-152.27895225,0.00040827,9]
[314619475,1708455032409,-157.34,0.00040828,2]
[314619477,1708455032418,-323.18,0.00040844,10]
[314619479,1708455032427,-269.31,0.00040844,10]
[314619481,1708455032437,-224.43,0.00040844,10]
[314619483,1708455032447,-86574.61382308,0.00040854,6]
[314619486,1708455032470,-500.0,0.00040854,6]
[314619498,1708455037972,-792.76,0.00039953,2]
[314619499,1708455037982,-5047.8868889,0.00040854,6]
[314619500,1708455037994,-1887.478156,0.00040854,6]
[314619506,1708455040580,-318.328976,0.00040854,6]
[314619507,1708455041364,-528.99,0.00040854,6]
[314619508,1708455041376,-1541.58588843,0.00040854,6]
[314619509,1708455041426,-1576.9379362,0.00040854,6]
[314619510,1708455041438,-618.48491259,0.00040854,6]
[314619511,1708455041450,-12689.80317,0.00040854,6]
[314619514,1708455041462,-7966.97622275,0.00040854,6]
[314619536,1708455042882,-155.85,0.00040844,10]
[314619537,1708455042893,-147.69,0.00040854,6]
[314619538,1708455042904,-2491.29868159,0.00040854,6]
[314619539,1708455042917,-2433.305289,0.00040854,6]
[314619540,1708455042948,-5474.10482025,0.00040854,6]
[314619541,1708455042959,-1816.16169547,0.00040854,6]
[314619542,1708455042971,-529.73999,0.00040854,6]
[314619543,1708455042984,-3392.35337584,0.00040854,6]
[314619544,1708455042995,-505.4491903,0.00040854,6]
[314619545,1708455043007,-346.74620445,0.00040854,6]
[314619546,1708455043021,-1339.26328638,0.00040854,6]
[314619551,1708455045378,-376.7481176,0.00040854,6]
[314619553,1708455045392,-113475.73686417,0.00040854,6]
[314619556,1708455045401,-218.4045395,0.00040854,2]
[314619557,1708455045410,-167719.788993,0.00040855,6]
[314619558,1708455045420,-53088.59148635,0.00040864,4]
[314619559,1708455045431,-44532.45964507,0.00040864,4]
[314619560,1708455045442,-4045.38426351,0.00040864,4]
[314619561,1708455045454,-302.0,0.00040864,4]
[314619562,1708455045465,-412.74691942,0.00040864,4]
[314619570,1708455045944,-644.8206562,0.00040864,4]
[314619571,1708455046006,-310.0765343,0.00040864,4]
[314619572,1708455046018,-3107.42475,0.00040864,4]
[314619573,1708455046070,-4495.4918608,0.00040864,4]
[314619574,1708455046082,-718.766,0.00040864,4]
[314619575,1708455046140,-12823.70544245,0.00040864,4]
[314619576,1708455046205,-673.38761957,0.00040864,4]
[314619577,1708455046218,-21324.57834164,0.00040864,4]
[314619578,1708455046229,-4864.15268185,0.00040864,4]
[314619579,1708455046240,-1069.51230699,0.00040864,4]
[314619580,1708455046252,-340.84328745,0.00040864,4]
[314619581,1708455046269,-15366.0,0.00040864,4]
[314619582,1708455046331,-211236.3414619,0.00040864,4]
[314619585,1708455046343,-10875.07182806,0.00040864,4]
[314619587,1708455046354,-1694.7519018,0.00040864,4]
[314619620,1708455069259,138478.40784686,0.00023,2]
[314619621,1708455069285,1396238.82998122,0.00023,2]
[314619622,1708455165632,680.0,0.00025,15]
[314619624,1708455203327,200.0,0.00022816,2]
[314619625,1708455210772,800.0,0.00022815,2]
[314619626,1708455210954,800.0,0.00022816,2]
[314619627,1708455211927,800.0,0.00022816,2]
[314619628,1708455220182,926.56415187,0.000301,2]
[314619629,1708455226836,200.0,0.00022816,2]
[314619632,1708455244586,2354.60034659,0.00033,2]
[314619633,1708455248161,500.0,0.0002,2]
[314619634,1708455248549,760.00650843,0.0003,2]
[314619636,1708455259237,4491.3958283,0.000272,2]
[314619637,1708455262172,254.51152272,0.000299,2]
[314619638,1708455263563,1833.13233191,0.00025,7]
[314619640,1708455265539,6435.8904232,0.0002996,2]
[314619641,1708455267124,826.61972608,0.0003,2]
[314619642,1708455267448,189.99822743,0.0002298,7]
[314619643,1708455267896,5603.21289673,0.00025,2]
[314619644,1708455300286,172.01,0.00031062,2]
[314619648,1708455326986,179.59602615,0.0003432,2]
[314619649,1708455351232,172.64,0.00027397,2]
[314619650,1708455351555,172.64,0.00031963,2]
[314619662,1708455457190,179.59602613,0.0003432,2]
[314619680,1708455577409,179.59602613,0.0003432,2]
[314619692,1708455896347,3000.0,0.0003432,2]
[314619693,1708455944000,686.84881,0.0003432,2]
[314619694,1708455965314,750.0,0.00025,3]
[314619695,1708455966401,800.0,0.00027,3]
[314619696,1708455967500,850.0,0.00029,3]
[314619697,1708455968586,900.0,0.00031,3]
[314619698,1708455969705,950.0,0.00033,3]
[314619699,1708455986774,2500.0,0.0003432,2]
[314619700,1708456040070,177.0,0.00033,2]
[314619701,1708456046131,-209.78810209,0.0003442,2]
[314619721,1708456232159,-83.39789791,0.0003442,2]
[314619722,1708456232168,-572.374,0.0003442,2]
[314619723,1708456232178,-159.31589274,0.0003442,2]
[314619724,1708456232187,-49.59662643,0.0003452,2]
[314619725,1708456232260,-126.61202442,0.0003452,2]
[314619726,1708456232407,-0.45807963,0.0003452,2]
[314619727,1708456232780,-255.4812832,0.0003452,2]
[314619739,1708456238181,-1068.70793732,0.0003452,2]
[314619740,1708456238192,-571.754648,0.0003452,2]
[314619741,1708456238203,-159.31589272,0.0003466,2]
[314619742,1708456238214,-167.2103471,0.00034693,2]
[314619743,1708456238225,-150.0,0.00034793,3]
[314619744,1708456238236,-400.0,0.00034793,3]
[314619745,1708456238249,-2251.283927,0.00034794,2]
[314619746,1708456238259,-857.631972,0.00034794,2]
[314619747,1708456238269,-671.31011579,0.000348,2]
[314619748,1708456238279,-159.31589272,0.000349,2]
[314619749,1708456238290,-3001.711902,0.00034931,2]
[314619750,1708456238303,-1143.509296,0.00034931,2]
[314619751,1708456238313,-165.0,0.00035,2]
[314619752,1708456238323,-165.0,0.00035,2]
[314619753,1708456238333,-1000.0,0.00035,3]
[314619754,1708456238344,-2143.00618512,0.00035,2]
[314619755,1708456238357,-843.93381488,0.00035,2]
[314619756,1708456238368,-1723.21908512,0.00035,2]
[314619757,1708456238381,-11366.90399986,0.00035,2]
[314619758,1708456238394,-5115.34521522,0.00035,2]
[314619759,1708456238424,-2594.5116998,0.00035,2]
[314619760,1708456238435,-6145.92,0.00035,2]
[314619761,1708456238445,-3752.139878,0.00035068,2]
[314619762,1708456238456,-1429.38662,0.00035068,2]
[314619763,1708456238467,-150.99,0.00035068,2]
[314619764,1708456238477,-560.01,0.0003518,2]
[314619765,1708456238487,-5252.995829,0.00035342,2]
[314619766,1708456238498,-2001.141269,0.00035342,2]
[314619767,1708456238509,-499.99,0.00035342,2]
[314619770,1708456238519,-7283.86233205,0.00035573,2]
[314619772,1708456238530,-167.21034707,0.00035583,2]
[314619774,1708456238540,-192.58282484,0.000359,2]
[314619776,1708456238550,-167.21034707,0.00036472,2]
[314619778,1708456238560,-172.64,0.0003653,2]
[314619780,1708456238570,-16346.999999,0.000368,2]
[314619782,1708456238580,-277.94,0.000369,2]
[314619784,1708456238591,-1050.0,0.00037,3]
[314619787,1708456238601,-169.0,0.00037,2]
[314619789,1708456238611,-1500.0,0.00037098,10]
[314619791,1708456238622,-167.21034707,0.00037362,2]
[314619793,1708456238632,-560.01,0.00037444,2]
[314619795,1708456238642,-2000.0,0.00037635,2]
[314619797,1708456238652,-1297.5,0.00037637,2]
[314619799,1708456238665,-500.0,0.00037678,2]
[314619801,1708456238677,-150.0,0.00037702,2]
[314619804,1708456238688,-544.0,0.00037704,2]
[314619806,1708456238698,-250.0,0.00037718,2]
[314619808,1708456238709,-250.0,0.00037768,2]
[314619810,1708456238719,-8346.84,0.00037768,2]
[314619812,1708456238729,-200.0,0.00037805,2]
[314619814,1708456238739,-1480.74,0.00037827,2]
[314619816,1708456238751,-200.0,0.00037871,2]
[314619819,1708456238761,-311.01,0.00037875,2]
[314619821,1708456238772,-662.08,0.00037888,2]
[314619823,1708456238782,-2450.07,0.00037963,2]
[314619825,1708456238792,-171.86,0.00038019,2]
[314619827,1708456238802,-23900.0,0.00038053,2]
[314619829,1708456238813,-1251.39,0.00038076,2]
[314619831,1708456238823,-456.0,0.00038094,2]
[314619834,1708456238834,-153.47,0.00038094,2]
[314619836,1708456238844,-207.03,0.00038133,2]
[314619838,1708456238855,-200.0,0.00038187,2]
[314619840,1708456238865,-207.03,0.00038237,2]
[314619842,1708456238876,-167.21034707,0.00038252,2]
[314619844,1708456238886,-207.03,0.00038342,2]
[314619846,1708456238896,-150.95,0.00038356,2]
[314619848,1708456238906,-871.48,0.00038356,15]
[314619851,1708456238916,-4000.0,0.000384,2]
[314619853,1708456238927,-207.03,0.00038447,2]
[314619855,1708456238937,-207.03,0.00038551,2]
[314619857,1708456238947,-207.03,0.00038656,2]
[314619859,1708456238959,-207.03,0.0003876,2]
[314619861,1708456238971,-155.78,0.000388,2]
[314619863,1708456238981,-207.03,0.00038865,2]
[314619866,1708456238992,-5456.52946132,0.000389,3]
[314619868,1708456239004,-207.03,0.00038969,2]
[314619870,1708456239015,-1100.0,0.00039,3]
[314619872,1708456239026,-1297.5,0.00039029,2]
[314619874,1708456239037,-207.03,0.00039074,2]
[314619876,1708456239047,-167.21034707,0.00039142,2]
[314619878,1708456239058,-207.03,0.00039179,2]
[314619880,1708456239075,-150.0,0.0003926,2]
[314619883,1708456239085,-207.03,0.00039283,2]
[314619885,1708456239096,-155.78,0.00039285,2]
[314619887,1708456239107,-207.03,0.00039388,2]
[314619889,1708456239119,-572.37401,0.0003942,2]
[314619891,1708456239129,-207.03,0.00039492,2]
[314619893,1708456239139,-311.01,0.00039519,2]
[314619895,1708456239151,-3044.19562629,0.00039536,2]
[314619897,1708456239161,-207.03,0.00039597,2]
[314619899,1708456239171,-71646.69595983,0.000396,2]
[314619902,1708456239187,-613.4348461,0.000396,2]
[314619903,1708456239199,-2019.8,0.000396,2]
[314619904,1708456239212,-1207.6,0.000396,2]
[314619905,1708456239225,-1076.7,0.000396,2]
[314619906,1708456239238,-305.51235568,0.000396,2]
[314619932,1708456239994,-9498.15892633,0.000396,2]
[314619933,1708456240008,-5439.61900603,0.000396,2]
[314619934,1708456240023,-469.63768121,0.000396,2]
[314619935,1708456240046,-0.80053964,0.000396,2]
[314619940,1708456240706,-469.75190322,0.0003442,2]
[314619941,1708456240719,-455.34159678,0.0003442,2]
[314619942,1708456240729,-150.0,0.00038484,2]
[314619943,1708456240738,-1153.59819883,0.000396,2]
[314619944,1708456240750,-643.8647929,0.000396,2]
[314619945,1708456240770,-150.0,0.00038484,2]
[314619946,1708456240779,-1303.68481853,0.000396,2]
[314619947,1708456240829,-269.2302333,0.000396,2]
[314619948,1708456240840,-16358.56654162,0.000396,2]
[314619949,1708456240850,-7681.39085957,0.00039602,2]
[314619950,1708456240875,-912.88933438,0.00039602,2]
[314619951,1708456240886,-7468.56449867,0.00039602,2]
[314619952,1708456240896,-1000.0,0.00039637,30]
[314619953,1708456240905,-3819.1009574,0.000397,2]
[314619954,1708456240921,-180.8990426,0.000397,2]
[314619955,1708456240930,-207.03,0.00039701,2]
[314619956,1708456240938,-560.01,0.00039708,2]
[314619957,1708456240948,-173.97,0.00039726,2]
[314619958,1708456240957,-155.78,0.0003977,2]
[314619959,1708456240966,-207.03,0.00039806,2]
[314619960,1708456240975,-1161.0181,0.0003989,2]
[314619961,1708456240985,-207.03,0.00039911,2]
[314619962,1708456240994,-43.3728574,0.00039956,2]
[314619963,1708456241008,-206.6271426,0.00039956,2]
[314619964,1708456241017,-300.0,0.0004,7]
[314619965,1708456241026,-278.53143149,0.0004,2]
[314619966,1708456241537,-693.22305721,0.0004,2]
[314619967,1708456241598,-2804.78427301,0.0004,2]
[314619968,1708456241607,-255.0,0.0004,12]
[314619969,1708456241617,-165.0,0.0004,2]
[314619970,1708456241626,-165.0,0.0004,2]
[314619971,1708456241635,-255.0,0.0004,12]
[314619972,1708456241645,-158.44830995,0.0004,2]
[314619973,1708456241654,-158.44830995,0.0004,2]
[314619974,1708456241665,-158.44830995,0.0004,2]
[314619975,1708456241674,-158.44830995,0.0004,2]
[314619976,1708456241683,-158.44830995,0.0004,2]
[314619977,1708456241693,-158.44830995,0.0004,2]
[314619978,1708456241702,-158.44830995,0.0004,2]
[314619979,1708456241712,-158.44830995,0.0004,2]
[314619980,1708456241722,-158.44830995,0.0004,2]
[314619981,1708456241731,-158.44830995,0.0004,2]
[314619982,1708456241740,-158.44830995,0.0004,2]
[314619983,1708456241749,-158.44830995,0.0004,2]
[314619985,1708456241758,-158.44830995,0.0004,2]
[314619987,1708456241768,-158.44830995,0.0004,2]
[314619990,1708456241787,-158.44830995,0.0004,2]
[314619992,1708456241798,-158.44830995,0.0004,2]
[314619994,1708456241807,-158.44830995,0.0004,2]
[314619996,1708456241817,-158.44830995,0.0004,2]
[314619998,1708456241826,-158.44830995,0.0004,2]
[314620000,1708456241835,-158.44830995,0.0004,2]
[314620002,1708456241845,-158.44830995,0.0004,2]
[314620004,1708456241854,-158.44830995,0.0004,2]
[314620005,1708456241864,-158.44830995,0.0004,2]
[314620006,1708456241873,-158.44830995,0.0004,2]
[314620007,1708456241883,-158.44830995,0.0004,2]
[314620009,1708456241892,-158.44830995,0.0004,2]
[314620012,1708456241902,-158.44830995,0.0004,2]
[314620014,1708456241911,-158.44830995,0.0004,2]
[314620016,1708456241920,-158.44830995,0.0004,2]
[314620018,1708456241930,-158.44830995,0.0004,2]
[314620020,1708456241939,-158.44830995,0.0004,2]